bitfinex-derivatives/quotes_SOLF0:USTF0_20250830
["timestamp","ask_amount","ask_price","bid_price","bid_amount"]
[1756557113675,6.42118629,200.41,200.23,7.5]
[1756557113975,2.39744366,200.4,200.24,7.5]
[1756557114178,2.39744366,200.39,200.24,7.5]
[1756557114377,6.42118629,200.41,200.24,7.5]
[1756557114572,2.39823353,200.4,200.24,7.5]
[1756557114779,335.6,200.46,200.27,7.5]
[1756557114980,2.3986238,200.45,200.27,7.5]
[1756557115185,6.42118629,200.51,200.31,7.5]
[1756557115381,9.45157338,200.5,200.31,7.5]
[1756557115578,2.3991056,200.49,200.31,7.5]
[1756557115881,2.3991056,200.48,200.31,7.5]
[1756557116078,2.3991056,200.47,200.31,7.5]
[1756557116282,6.42118629,200.51,200.32,7.5]
[1756557116471,2.39880314,200.5,200.32,7.5]
[1756557116674,2.39910572,200.49,200.35,7.5]
[1756557116874,6.42118629,200.55,200.35,7.5]
[1756557117079,9.45118858,200.54,200.35,7.5]
[1756557117276,2.3991186,200.53,200.35,7.5]
[1756557117471,2.3991186,200.52,200.35,7.5]
[1756557117675,6.42118629,200.55,200.35,7.5]
[1756557117877,2.39833464,200.54,200.35,7.5]
[1756557118081,2.39833464,200.53,200.35,7.5]
[1756557118287,2.39833464,200.52,200.35,7.5]
[1756557118574,6.42118629,200.56,200.39,7.5]
[1756557118781,2.39752377,200.55,200.39,7.5]
[1756557119085,0.12,200.57,200.39,7.5]
[1756557119278,2.39623139,200.56,200.39,7.5]
[1756557119479,0.12,200.54,200.39,7.5]
[1756557119679,2.39595408,200.53,200.39,7.5]
[1756557119882,0.12,200.54,200.39,7.5]
[1756557120076,2.39582653,200.53,200.39,7.5]
[1756557120280,342.02118629,200.6,200.39,7.5]
[1756557120591,0.12,200.7,200.51,7.5]
[1756557120778,2.39746404,200.69,200.51,7.5]
[1756557121082,2.39746404,200.68,200.53,7.5]
[1756557121376,0.03785202,200.62,200.58,7.53238549]
[1756557121580,0.03785202,200.62,200.59,7.5]
[1756557122185,0.03785202,200.62,200.58,0.03238549]
[1756557122385,0.03785202,200.62,200.59,7.5]
[1756557122578,0.03785202,200.62,200.58,0.03238549]
[1756557122887,0.12,200.71,200.59,8.0]
[1756557123180,0.12,200.71,200.59,7.5]
[1756557123778,6.58118629,200.77,200.59,7.5]
[1756557123974,6.42118629,200.77,200.59,7.5]
[1756557124177,2.54463848,200.76,200.63,0.03416329]
[1756557124379,0.16,200.76,200.63,0.03416329]
[1756557124584,0.16,200.76,200.59,7.5]
[1756557124879,0.16,200.76,200.67,0.03366013]
[1756557125480,335.62,200.81,200.68,7.5]
[1756557126082,0.16,200.81,200.68,7.5]
[1756557126284,0.16,200.81,200.72,0.0316654]
[1756557128589,0.1,200.86,200.72,0.0316654]
[1756557128984,0.1,200.86,200.71,7.63]
[1756557129388,0.1,200.86,200.77,0.03655416]
[1756557130084,6.42118629,200.83,200.77,0.03655416]
[1756557130289,0.1,200.86,200.77,0.03655416]
[1756557134390,0.1,200.8,200.77,0.03655416]
[1756557135994,0.1,200.86,200.77,0.03655416]
[1756557136196,0.1,200.82,200.77,0.03655416]
[1756557136394,6.42118629,200.83,200.77,0.03655416]
[1756557136591,6.52118629,200.83,200.77,0.03655416]
[1756557136896,0.1,200.83,200.77,0.03655416]
[1756557137396,3.9298268,200.87,200.77,7.66655416]
[1756557137592,3.9298268,200.84,200.77,0.03655416]
[1756557137794,3.9298268,200.88,200.72,7.63]
[1756557137993,3.9298268,200.8,200.78,0.03330756]
[1756557138293,0.1,200.79,200.63,10.8]
[1756557138596,3.9298268,200.77,200.64,7.63]
[1756557138787,3.9298268,200.78,200.64,7.63]
[1756557139695,3.9298268,200.75,200.64,7.63]
[1756557139997,0.1,200.79,200.64,7.63]
[1756557140190,4.0298268,200.79,200.64,7.63]
[1756557140397,3.9298268,200.82,200.66,7.63]
[1756557140895,0.1,200.81,200.66,7.63]
[1756557141099,3.9298268,200.79,200.66,7.63]
[1756557141494,3.9298268,200.79,200.66,11.5598268]
[1756557141798,0.1,200.81,200.67,7.63]
[1756557142196,3.9298268,200.79,200.67,7.63]
[1756557142595,0.1,200.92,200.67,3.9298268]
[1756557142795,3.9298268,200.85,200.7,3.9298268]
[1756557142999,3.9298268,200.85,200.71,7.63]
[1756557143501,3.9298268,200.88,200.71,7.63]
[1756557143698,3.9298268,200.8,200.71,7.63]
[1756557144098,3.9298268,200.83,200.71,7.63]
[1756557145802,139.28,200.91,200.64,7.63]
[1756557145803,3.9298268,200.8,200.64,7.63]
[1756557147602,3.9298268,200.77,200.64,7.63]
[1756557148501,0.11,200.79,200.64,7.63]
[1756557148798,4.0398268,200.79,200.64,7.63]
[1756557149000,0.11,200.79,200.64,7.63]
[1756557149198,4.0398268,200.79,200.64,7.63]
[1756557149902,3.9298268,200.73,200.64,7.63]
[1756557153403,0.11,200.72,200.59,7.63]
[1756557155300,3.9298268,200.76,200.59,7.63]
[1756557155694,334.84,200.83,200.65,7.63]
[1756557155695,0.11,200.77,200.65,7.63]
[1756557155902,3.9298268,200.79,200.65,7.63]
[1756557157097,2.38334232,200.78,200.65,7.63]
[1756557157501,2.38867685,200.77,200.65,7.63]
[1756557157806,3.9298268,200.79,200.66,7.87]
[1756557158107,2.38877811,200.78,200.66,7.87]
[1756557158308,2.38877811,200.77,200.66,7.87]
[1756557158606,2.38877811,200.76,200.66,7.87]
[1756557158808,0.11,200.81,200.66,7.87]
[1756557159011,6.01339381,200.8,200.66,7.87]
[1756557159307,6.01339381,200.79,200.66,7.87]
[1756557159506,6.01339381,200.78,200.66,7.87]
[1756557159703,6.01339381,200.77,200.66,7.87]
[1756557159904,2.39433578,200.76,200.66,7.87]
[1756557160104,6.01981325,200.75,200.66,7.87]
[1756557160302,6.01981325,200.74,200.66,7.87]
[1756557160607,6.01981325,200.73,200.66,7.87]
[1756557160805,2.39433578,200.72,200.66,7.87]
[1756557161004,4.0098268,200.82,200.68,7.87]
[1756557161206,3.9298268,200.79,200.68,7.87]
[1756557161405,5.96406579,200.78,200.68,7.87]
[1756557161604,5.96406579,200.77,200.68,7.87]
[1756557161905,2.40268034,200.76,200.68,7.87]
[1756557162107,2.40268034,200.75,200.68,7.87]
[1756557162307,2.40268034,200.74,200.68,7.87]
[1756557162503,2.40268034,200.73,200.65,7.87]
[1756557162699,2.40268034,200.72,200.65,7.87]
[1756557162905,0.08,200.82,200.68,7.87]
[1756557163208,3.9298268,200.77,200.68,7.87]
[1756557163408,3.57263562,200.76,200.68,7.87]
[1756557163606,3.57263562,200.75,200.68,7.87]
[1756557163908,3.57263562,200.74,200.68,7.87]
[1756557164108,3.9298268,200.74,200.61,7.87]
[1756557164710,2.48,200.73,200.61,7.87]
[1756557166215,7.91060973,200.77,200.64,7.87]
[1756557166420,2.48,200.77,200.64,7.87]
[1756557167118,24.6859146,200.81,200.67,7.87]
[1756557167119,5.43060973,200.8,200.67,7.87]
[1756557168316,11.84043653,200.81,200.67,7.87]
[1756557169316,3.9298268,200.78,200.67,7.87]
[1756557169521,2.48,200.77,200.67,7.87]
[1756557171817,3.9298268,200.72,200.61,7.87]
[1756557173022,2.48,200.71,200.61,7.87]
[1756557173422,2.48,200.77,200.62,7.87]
[1756557173721,3.9298268,200.76,200.62,7.87]
[1756557173924,3.9298268,200.73,200.62,7.87]
[1756557174425,2.48,200.72,200.62,7.87]
[1756557174621,3.9298268,200.7,200.62,7.87]
[1756557175120,0.03283115,200.68,200.64,0.03711532]
[1756557175818,2.51283115,200.68,200.64,0.03711532]
[1756557176425,2.48,200.67,200.64,0.03711532]
[1756557176625,0.03283115,200.68,200.64,0.03711532]
[1756557176825,2.48,200.67,200.64,0.03711532]
[1756557178226,0.03283115,200.68,200.64,0.03711532]
[1756557178425,2.51283115,200.68,200.64,0.03711532]
[1756557179022,0.03283115,200.68,200.64,0.03711532]
[1756557179229,0.03283115,200.68,200.64,7.90711532]
[1756557180229,2.48,200.66,200.64,0.03711532]
[1756557180619,0.03283115,200.68,200.64,0.03711532]
[1756557180824,0.03283115,200.68,200.64,7.90711532]
[1756557181021,0.03283115,200.68,200.64,0.03711532]
[1756557182729,0.03283115,200.68,200.64,7.90711532]
[1756557183230,0.03283115,200.68,200.64,0.03711532]
[1756557183430,0.03283115,200.68,200.65,7.87]
[1756557183631,0.03283115,200.68,200.64,0.03711532]
[1756557184131,0.03283115,200.68,200.65,7.87]
[1756557185324,0.03283115,200.68,200.64,0.03711532]
[1756557185525,2.51283115,200.68,200.64,0.03711532]
[1756557185729,2.48,200.67,200.64,0.03711532]
[1756557185930,0.03283115,200.68,200.64,0.03711532]
[1756557186125,0.03283115,200.68,200.65,7.87]
[1756557186530,0.03283115,200.68,200.64,0.03711532]
[1756557186932,0.03283115,200.68,200.65,7.87]
[1756557187127,0.03283115,200.68,200.65,7.32]
[1756557187328,0.03283115,200.68,200.64,0.03711532]
[1756557187835,0.03283115,200.68,200.65,7.32]
[1756557189025,0.03283115,200.68,200.64,0.03711532]
[1756557189331,0.03283115,200.68,200.65,7.32]
[1756557189529,0.03283115,200.68,200.64,0.03711532]
[1756557189829,2.48,200.76,200.65,9.77838319]
[1756557190034,2.48,200.76,200.66,7.32]
[1756557190632,2.45838319,200.74,200.66,7.32]
[1756557191237,2.45838319,200.74,200.68,0.03437351]
[1756557193434,2.48,200.76,200.68,0.03437351]
[1756557196231,5.00838319,200.8,200.69,9.77838319]
[1756557197032,5.00838319,200.8,200.72,0.03828431]
[1756557197234,2.45838319,200.79,200.72,0.03828431]
[1756557198537,2.55,200.8,200.72,0.03828431]
[1756557198740,2.45838319,200.79,200.72,0.03828431]
[1756557199640,2.55,200.8,200.72,0.03828431]
[1756557199839,2.55,200.8,200.73,7.32]
[1756557201438,2.45838319,200.79,200.72,0.03828431]
[1756557202036,2.55,200.8,200.72,7.35828431]
[1756557202542,2.45838319,200.83,200.72,7.35828431]
[1756557202742,2.45838319,200.83,200.72,9.8166675]
[1756557203145,2.45838319,200.83,200.73,7.32]
[1756557204044,2.55,200.82,200.73,7.32]
[1756557204340,2.45838319,200.8,200.73,7.32]
[1756557204542,2.45838319,200.77,200.72,0.03828431]
[1756557204743,2.55,200.73,200.72,0.03828431]
[1756557207546,2.55,200.73,200.64,7.32]
[1756557207547,2.52,200.7,200.59,9.77838319]
[1756557208257,2.52,200.77,200.6,7.32]
[1756557208545,4.97838319,200.73,200.6,7.32]
[1756557209949,4.97838319,200.7,200.6,7.32]
[1756557210946,4.97838319,200.67,200.6,7.32]
[1756557212051,2.45838319,200.72,200.6,7.32]
[1756557212247,2.45838319,200.72,200.62,7.32]
[1756557212953,2.52,200.74,200.62,7.32]
[1756557213154,2.45838319,200.73,200.62,7.32]
[1756557214355,2.45838319,200.7,200.62,7.32]
[1756557214755,2.45838319,200.73,200.62,7.32]
[1756557215356,2.52,200.74,200.62,7.32]
[1756557215750,2.52,200.74,200.63,7.32]
[1756557217456,2.45838319,200.69,200.63,7.32]
[1756557221956,2.54,200.71,200.63,7.32]
[1756557222159,2.45838319,200.76,200.66,7.68]
[1756557223461,2.45838319,200.78,200.66,7.68]
[1756557223659,2.45838319,200.78,200.62,2.45838319]
[1756557223660,2.54,200.8,200.69,7.68]
[1756557223955,2.45838319,200.81,200.69,7.68]
[1756557224358,2.54,200.74,200.69,7.68]
[1756557225156,2.45838319,200.75,200.65,7.68]
[1756557225359,4.99838319,200.78,200.65,7.68]
[1756557226354,2.45838319,200.73,200.65,7.68]
[1756557226661,4.99838319,200.73,200.65,7.68]
[1756557228959,2.45838319,200.7,200.65,7.68]
[1756557230258,2.45838319,200.67,200.6,7.68]
[1756557230862,2.45838319,200.64,200.55,7.68]
[1756557231157,2.45838319,200.63,200.55,7.68]
[1756557231559,2.54,200.66,200.55,7.68]
[1756557231859,2.45838319,200.62,200.55,7.68]
[1756557233262,2.45838319,200.62,200.49,2.45838319]
[1756557233263,2.45838319,200.59,200.49,7.68]
[1756557234566,2.45838319,200.56,200.49,7.68]
[1756557236265,2.45838319,200.57,200.49,7.68]
[1756557236567,2.45838319,200.5,200.44,7.68]
[1756557238865,2.45838319,200.47,200.37,7.68]
[1756557239363,2.45838319,200.49,200.37,2.45838319]
[1756557239569,2.45838319,200.49,200.38,7.68]
[1756557240267,2.45838319,200.49,200.4,2.45838319]
[1756557240467,2.45838319,200.52,200.41,7.68]
[1756557241467,2.45838319,200.49,200.41,7.68]
[1756557242169,4.99838319,200.46,200.41,7.68]
[1756557242872,2.54,200.5,200.37,7.68]
[1756557243173,2.45838319,200.47,200.37,7.68]
[1756557243669,2.45838319,200.44,200.37,7.68]
[1756557246572,2.54,200.47,200.37,7.68]
[1756557246767,4.99838319,200.47,200.37,7.68]
[1756557247867,2.45838319,200.47,200.37,2.45838319]
[1756557248173,2.45838319,200.47,200.24,350.05]
[1756557248373,2.9,200.54,200.31,2.45838319]
[1756557248374,2.45838319,200.44,200.31,2.45838319]
[1756557248676,2.45838319,200.44,200.32,7.91]
[1756557249068,2.45838319,200.44,200.32,10.36838319]
[1756557249268,6.50500323,200.46,200.33,7.91]
[1756557249872,2.56,200.46,200.33,7.91]
[1756557251165,2.56,200.33,200.2,7.91]
[1756557251370,2.56,200.28,200.11,7.91]
[1756557251570,2.56,200.28,200.13,3.94500323]
[1756557251770,2.56,200.28,200.14,7.91]
[1756557253577,3.94500323,200.27,200.14,7.91]
[1756557255676,2.56,200.26,200.14,7.91]
[1756557256479,3.94500323,200.24,200.14,7.91]
[1756557256680,2.56,200.26,200.14,7.91]
[1756557256870,3.94500323,200.24,200.14,7.91]
[1756557259189,2.56,200.26,200.14,7.91]
[1756557259379,3.94500323,200.25,200.14,7.91]
[1756557260681,2.56,200.24,200.14,7.91]
[1756557262284,3.94500323,200.28,200.14,7.91]
[1756557264279,3.94500323,200.28,200.15,7.91]
[1756557264584,2.56,200.29,200.15,7.91]
[1756557265584,2.56,200.29,200.16,7.91]
[1756557266981,3.94500323,200.32,200.17,3.94500323]
[1756557267181,2.57,200.33,200.18,7.91]
[1756557269688,2.57,200.3,200.14,7.91]
[1756557269889,2.57,200.3,200.15,7.91]
[1756557270088,2.57,200.37,200.18,7.91]
[1756557270291,3.94500323,200.35,200.18,7.91]
[1756557270486,2.57,200.34,200.18,7.91]
[1756557270685,2.57,200.34,200.11,336.44926113]
[1756557270686,2.57,200.34,200.23,3.94500323]
[1756557270989,2.57,200.34,200.24,7.91]
[1756557271590,2.57,200.32,200.21,7.91]
[1756557271787,2.57,200.29,200.21,7.91]
[1756557273387,5.0392431,200.29,200.21,7.91]
[1756557273891,2.57,200.29,200.21,7.91]
[1756557274087,5.0392431,200.29,200.21,7.91]
[1756557274987,2.4692431,200.26,200.16,7.91]
[1756557275289,5.0392431,200.26,200.16,7.91]
[1756557275790,2.4692431,200.25,200.16,7.91]
[1756557278888,2.57,200.26,200.16,7.91]
[1756557279094,2.4692431,200.27,200.16,7.91]
[1756557279894,5.0492431,200.27,200.16,7.91]
[1756557281689,2.58,200.27,200.16,7.91]
[1756557281896,2.4692431,200.26,200.16,7.91]
[1756557284491,2.58,200.25,200.15,7.66]
[1756557284690,2.4692431,200.26,200.15,7.66]
[1756557284895,2.4692431,200.28,200.15,7.66]
[1756557286098,2.58,200.3,200.15,7.66]
[1756557286299,2.4692431,200.27,200.15,7.66]
[1756557286801,2.58,200.3,200.15,7.66]
[1756557286994,2.4692431,200.28,200.15,7.66]
[1756557287300,2.4692431,200.29,200.18,7.66]
[1756557287998,2.4692431,200.28,200.18,7.66]
[1756557288205,2.58,200.3,200.18,7.66]
[1756557288393,2.4692431,200.29,200.18,7.66]
[1756557288593,2.58,200.3,200.19,7.66]
[1756557288793,5.0492431,200.3,200.19,7.66]
[1756557289999,2.4692431,200.29,200.19,7.66]
[1756557290199,2.58,200.3,200.19,7.66]
[1756557290500,2.4692431,200.29,200.19,7.66]
[1756557291500,2.58,200.3,200.19,7.66]
[1756557291700,2.4692431,200.29,200.19,7.66]
[1756557292197,2.4692431,200.32,200.2,2.4692431]
[1756557292391,2.4692431,200.32,200.21,7.66]
[1756557292797,2.4692431,200.29,200.21,7.66]
[1756557293593,2.58,200.3,200.21,7.66]
[1756557293799,5.0492431,200.28,200.21,7.66]
[1756557295106,5.0492431,200.36,200.23,7.66]
[1756557295604,2.4692431,200.34,200.23,7.66]
[1756557295999,2.58,200.33,200.23,7.66]
[1756557296406,2.4692431,200.34,200.23,7.66]
[1756557297403,5.0492431,200.37,200.22,5.52108174]
[1756557297608,5.0492431,200.37,200.27,7.66]
[1756557297808,2.4692431,200.4,200.27,7.66]
[1756557298010,5.0492431,200.41,200.3,7.66]
[1756557298910,2.58,200.41,200.3,7.66]
[1756557299207,6.29932837,200.47,200.3,10.1292431]
[1756557299208,2.58,200.42,200.3,10.1292431]
[1756557299398,2.58,200.42,200.31,7.66]
[1756557300509,2.4692431,200.43,200.31,7.66]
[1756557300809,2.4692431,200.43,200.27,20.66]
[1756557300810,2.4692431,200.43,200.34,7.66]
[1756557301497,2.58,200.42,200.34,7.66]
[1756557301697,2.4692431,200.4,200.3,7.66]
[1756557301909,2.4692431,200.37,200.3,7.66]
[1756557302298,2.58,200.36,200.26,7.66]
[1756557302504,2.4692431,200.34,200.26,7.66]
[1756557304011,2.58,200.36,200.26,7.66]
[1756557304308,2.58,200.36,200.28,2.4692431]
[1756557304506,2.58,200.36,200.29,7.66]
[1756557304705,2.4692431,200.39,200.29,7.66]
[1756557304906,0.8686319,200.48,200.32,7.66]
[1756557305111,2.4692431,200.46,200.35,7.66]
[1756557305504,2.58,200.47,200.35,7.66]
[1756557305706,5.0492431,200.47,200.35,7.66]
[1756557305907,2.58,200.47,200.35,7.66]
[1756557306102,5.0492431,200.47,200.35,7.66]
[1756557306708,5.0492431,200.47,200.36,2.4692431]
[1756557307706,2.4692431,200.46,200.36,2.4692431]
[1756557307905,2.4692431,200.46,200.35,7.66]
[1756557308917,2.4692431,200.46,200.38,7.8]
[1756557309716,2.58,200.47,200.38,7.8]
[1756557310511,335.62,200.49,200.4,7.8]
[1756557310714,2.4692431,200.5,200.4,7.8]
[1756557310916,2.57,200.51,200.4,7.8]
[1756557311117,2.4692431,200.5,200.4,7.8]
[1756557311519,2.4692431,200.47,200.4,7.8]
[1756557311715,2.4692431,200.47,200.21,14.95]
[1756557311716,2.4692431,200.41,200.26,5.52108174]
[1756557311921,2.4692431,200.41,200.3,7.8]
[1756557313522,337.8892431,200.4,200.15,7.8]
[1756557313823,2.4692431,200.32,200.2,7.8]
[1756557314818,2.4692431,200.29,200.2,7.8]
[1756557315423,135.31,200.31,200.2,7.8]
[1756557318126,2.57,200.31,200.2,7.8]
[1756557318524,3.95089982,200.32,200.15,7.8]
[1756557318729,2.57,200.28,200.15,7.8]
[1756557321027,6.52089982,200.28,200.15,7.8]
[1756557322118,5.43060973,200.44,200.27,3.95089982]
[1756557322319,5.43060973,200.49,200.35,3.95089982]
[1756557322526,3.95089982,200.56,200.39,7.8]
[1756557322724,3.95089982,200.57,200.39,7.8]
[1756557322924,6.52,200.58,200.43,7.8]
[1756557325123,3.95089982,200.57,200.43,7.8]
[1756557325326,6.51,200.53,200.43,7.8]
[1756557326721,10.46089982,200.53,200.43,7.8]
[1756557327029,10.46089982,200.53,200.37,7.8]
[1756557327228,10.46089982,200.53,200.4,7.8]
[1756557329329,6.51,200.53,200.4,7.8]
[1756557331134,6.51,200.53,200.4,11.75089982]
[1756557331631,10.46089982,200.53,200.4,7.8]
[1756557331824,3.95089982,200.5,200.4,7.8]
[1756557332029,10.46089982,200.5,200.4,7.8]
[1756557333530,6.51,200.5,200.4,7.8]
[1756557334132,10.46089982,200.5,200.4,7.8]
[1756557334336,10.46089982,200.5,200.35,7.8]
[1756557335429,6.51,200.43,200.3,343.34]
[1756557336027,6.51,200.43,200.3,335.54]
[1756557336224,6.51,200.43,200.31,7.8]
[1756557336432,6.51,200.49,200.36,3.95089982]
[1756557336733,6.51,200.49,200.37,7.8]
[1756557337132,6.52,200.46,200.33,11.79089982]
[1756557337433,6.52,200.46,200.34,7.84]
[1756557344539,6.49,200.53,200.37,7.84]
[1756557344732,3.95089982,200.52,200.37,7.84]
[1756557344931,6.49,200.51,200.37,7.84]
[1756557345332,6.49,200.48,200.37,7.84]
[1756557346138,6.49,200.45,200.37,7.84]
[1756557349939,6.49,200.5,200.37,7.84]
[1756557353140,6.49,200.47,200.37,7.84]
[1756557353739,10.44089982,200.47,200.37,7.84]
[1756557355241,6.49,200.47,200.37,7.84]
[1756557357137,10.44089982,200.47,200.37,7.84]
[1756557360053,6.49,200.53,200.41,7.84]
[1756557361444,118.51841029,200.58,200.47,7.84]
[1756557362444,6.49,200.62,200.49,3.95089982]
[1756557362648,6.49,200.62,200.5,7.84]
[1756557366346,3.95089982,200.64,200.5,7.84]
[1756557366652,6.49,200.68,200.55,7.84]
[1756557369553,6.49,200.68,200.57,7.98]
[1756557372352,3.95089982,200.63,200.52,7.98]
[1756557372651,6.5,200.62,200.52,7.98]
[1756557373556,6.5,200.67,200.53,7.98]
[1756557378153,11.06,200.72,200.53,7.98]
[1756557378154,6.5,200.64,200.53,7.98]
[1756557380260,6.5,200.58,200.44,7.98]
[1756557381361,6.5,200.58,200.46,3.95089982]
[1756557381554,6.5,200.58,200.47,7.98]
[1756557384554,6.51,200.51,200.41,7.98]
[1756557390358,6.51,200.48,200.36,7.98]
[1756557393972,6.51,200.48,200.37,7.98]
[1756557395068,10.46089982,200.52,200.4,7.98]
[1756557395273,6.51,200.52,200.4,7.98]
[1756557396372,10.46089982,200.52,200.4,7.98]
[1756557397874,6.54,200.48,200.4,7.98]
[1756557398373,6.54,200.48,200.36,8.06]
[1756557398768,3.95089982,200.46,200.36,8.06]
[1756557398969,6.54,200.45,200.36,8.06]
[1756557400371,3.95089982,200.43,200.29,39.24]
[1756557400568,3.95089982,200.43,200.3,8.06]
[1756557400774,3.95089982,200.4,200.3,8.06]
[1756557400969,6.54,200.36,200.25,8.06]
[1756557403375,3.95089982,200.34,200.19,8.06]
[1756557403573,6.54,200.33,200.19,8.06]
[1756557409781,6.54,200.33,200.21,8.06]
[1756557411281,6.54,200.33,200.22,8.06]
[1756557411980,6.54,200.37,200.24,3.95089982]
[1756557412180,6.54,200.32,200.22,8.06]
[1756557412486,6.54,200.32,200.16,3.95089982]
[1756557412681,7.98,200.32,200.14,8.06]
[1756557412882,6.54,200.31,200.16,8.06]
[1756557414087,3.95089982,200.3,200.16,8.06]
[1756557416190,6.54,200.29,200.16,8.06]
[1756557417190,6.54,200.26,200.16,8.06]
[1756557420492,335.52,200.35,200.16,8.06]
[1756557420493,81.68,200.34,200.16,8.06]
[1756557420694,81.68,200.34,200.16,3.95089982]
[1756557420889,6.54,200.32,200.17,8.06]
[1756557421295,6.54,200.32,200.2,8.06]
[1756557425794,6.54,200.29,200.2,8.06]
[1756557426191,6.54,200.29,200.14,8.06]
[1756557426694,420.52,200.35,200.14,8.06]
[1756557426695,6.54,200.26,200.14,8.06]
[1756557426997,6.54,200.24,200.14,8.06]
[1756557431303,3.95089982,200.28,200.14,8.06]
[1756557431497,3.95089982,200.28,200.08,335.3]
[1756557431498,10.49089982,200.28,200.16,7.89]
[1756557432996,6.54,200.28,200.16,7.89]
[1756557435799,3.95089982,200.27,200.16,7.89]
[1756557436609,6.54,200.28,200.16,7.89]
[1756557436805,6.54,200.32,200.17,7.89]
[1756557437505,6.54,200.32,200.23,7.89]
[1756557439106,6.54,200.3,200.19,7.89]
[1756557441110,6.54,200.3,200.19,12.03338108]
[1756557441514,6.54,200.3,200.19,7.89]
[1756557442116,6.54,200.3,200.19,12.03338108]
[1756557442610,3.95089982,200.3,200.19,12.03338108]
[1756557442816,6.54,200.29,200.19,12.03338108]
[1756557443016,6.54,200.29,200.19,7.89]
[1756557443818,6.54,200.29,200.18,4.14338108]
[1756557444021,6.54,200.29,200.17,4.14338108]
[1756557444221,3.95089982,200.28,200.18,4.14338108]
[1756557444420,6.53,200.27,200.18,4.14338108]
[1756557444922,6.53,200.27,200.19,7.89]
[1756557445119,6.53,200.27,200.2,4.14338108]
[1756557445315,6.53,200.27,200.19,12.03338108]
[1756557447023,10.48089982,200.27,200.18,4.14338108]
[1756557447219,10.48089982,200.27,200.17,4.14338108]
[1756557447524,10.48089982,200.27,200.18,4.14338108]
[1756557449320,2.46996916,200.26,200.18,4.14338108]
[1756557449623,2.46996916,200.26,200.19,4.14338108]
[1756557450527,133.16,200.32,200.2,7.89]
[1756557450824,2.46996916,200.3,200.2,12.03338108]
[1756557451022,2.46996916,200.27,200.2,12.03338108]
[1756557451823,8.99996916,200.29,200.2,12.03338108]
[1756557454130,2.46996916,200.26,200.2,4.14338108]
[1756557455926,2.46996916,200.26,200.19,4.14338108]
[1756557456125,2.46996916,200.23,200.19,4.14338108]
[1756557456333,2.46996916,200.23,200.18,4.14338108]
[1756557457035,6.53,200.22,200.16,4.14338108]
[1756557457229,6.53,200.22,200.16,4.20042098]
[1756557457435,6.53,200.22,200.15,4.20042098]
[1756557457734,6.53,200.22,200.14,4.20042098]
[1756557458629,6.53,200.22,200.13,11.80042098]
[1756557459828,2.46996916,200.2,200.15,0.0324158]
[1756557460134,8.99996916,200.16,200.03,11.80042098]
[1756557460434,171.0,200.19,200.03,11.80042098]
[1756557460435,2.46996916,200.09,200.03,7.6]
[1756557461230,2.46996916,200.04,199.95,5.52108174]
[1756557461430,2.46996916,200.04,199.92,8.31263789]
[1756557461431,2.46996916,199.96,199.85,8.31263789]
[1756557461630,2.46996916,200.0,199.8,7.6]
[1756557461825,3.563571,199.99,199.8,7.6]